Cogmind - Beta 17 @@@ ROGUE MODE // 2026.06.29 @ 15:42:23 Player: JuustuToug Result: Destroyed by QB-G65(R) with Subdweller Beam Cannon Performance ------------- Evolutions (0) 0 Regions Visited (2) 400 Robots Destroyed (24) 120 Value Destroyed (508) 508 Prototype IDs (0) 0 Alien Tech Used (0) 0 Bonus (0) 0 TOTAL SCORE: 1028 Bonus ------- None Cogmind --------- Core Integrity 0/250 Matter 295/300 Energy 95/250 System Corruption 0% Temperature Cool (9) Movement Rolling (135) Ox3 Location -10/Subcaves Parts ------- > --- POWER (1) -------- Ion Engine > --- PROPULSION (2) --- Armored Wheel > --- UTILITY (2) ------ High-capacity Storage Unit > --- WEAPON (2) ------- (None) > --- INVENTORY (20) --- Ion Engine Light Ion Engine Armored Wheel Heat Sink Heat Sink Structural Scanner Seismic Detector Light Armor Plating Hacking Suite Hacking Suite Small Laser Peak State ------------ > --- POWER ------------ Ion Engine > --- PROPULSION ------- Light Treads Light Treads > --- UTILITY ---------- High-capacity Storage Unit Seismic Detector > --- WEAPON ----------- Assault Rifle Assault Rifle > --- INVENTORY -------- Ion Engine Ion Engine Light Ion Engine Aluminum Leg Aluminum Leg Armored Wheel Armored Wheel Heat Sink Heat Sink Structural Scanner Light Armor Plating Light Armor Plating Hacking Suite Hacking Suite Small Laser Hammer [Rating: 9] Favorites ----------- Power Ion Engine Engine Ion Engine Propulsion Light Treads Treads Light Treads Leg Aluminum Leg Wheel Armored Wheel Utility Seismic Detector Device Seismic Detector Storage High-capacity Storage Unit Protection Light Armor Plating Weapon Assault Rifle Ballistic Gun Assault Rifle Impact Weapon Hammer Build | -11 -10 -10 ------- Run | Yrd Mat Sub Slots Evolved . | . . . Power . | . . . Propulsion . | . . . Utility . | . . . Weapon . | . . . Parts Attached 19 | 8 9 2 Power 3 | 2 1 . Engine 3 | 2 1 . Core . | . . . Reactor . | . . . Propulsion 5 | 2 1 2 Treads 2 | 2 . . Leg 2 | . 1 1 Wheel 1 | . . 1 Hover . | . . . Flight . | . . . Utility 8 | 2 6 . Device 2 | 1 1 . Storage 4 | 1 3 . Processor . | . . . Hackware . | . . . Protection 2 | . 2 . Artifact . | . . . Weapon 3 | 2 1 . Energy Gun . | . . . Energy Cannon . | . . . Ballistic Gun 2 | 2 . . Ballistic Cannon . | . . . Launcher . | . . . Special Weapon . | . . . Impact Weapon 1 | . 1 . Slashing Weapon . | . . . Piercing Weapon . | . . . Special Melee Weapon . | . . . Unidentified Prototypes . | . . . Parts Lost 10 | . 3 7 Power 1 | . . 1 Propulsion 4 | . 1 3 Utility 2 | . 1 1 Weapon 3 | . 1 2 Highest Loss Streak 7 | . 2 7 To Critical Strikes . | . . . Average Backups 11 | 1 11 13 Power 2 | . 2 2 Propulsion 2 | . 2 2 Utility 5 | . 5 7 Weapon 1 | . 1 1 Tool/Special . | . . . Unused Backups 11 | . 2 9 Power 1 | . . 1 Propulsion 2 | . 1 1 Utility 7 | . 1 6 Weapon 1 | . . 1 Tool/Special . | . . . Average Slot Usage (%) 99 | . 99 99 Engine 13 | . 14 13 Treads 22 | . 25 13 Leg 5 | . 2 14 Device 12 | . 11 14 Storage 14 | . 14 14 Protection 1 | . 1 . Ballistic Gun 21 | . 24 13 Impact Weapon 5 | . 3 14 Peak Build Rating 9 | 7 9 9 Average Rating 8 | 5 8 8 On Entrance 5 | . 7 9 Avg Prop Armor Cover (%) 7 | . 7 8 Naked Turns . | . . . Heaviest Build 52 | 15 52 50 Greatest Support 40 | 40 40 20 Greatest Overweight (x) 2 | . 2 2 Average Overweight (x) . | . . 2 Largest Inventory Capacity 20 | 8 20 20 Average Capacity 16 | 7 16 20 Most Carried 16 | 2 16 14 Average Carried 11 | 1 11 13 Final Capacity 20 | 8 20 20 Final Carried 14 | 2 14 11 Class Distribution -------------------- 100% | Mutant Dominant Class ---------------- Mutant | -10/Materials Mutant | -10/Subcaves Resources | -11 -10 -10 ----------- Run | Yrd Mat Sub Matter Collected 820 | 232 558 30 Remotely . | . . . Salvage Created 833 | 56 711 66 Parts 39 | 7 32 . Haulers Intercepted 1 | . 1 . Recyclers Shooed . | . . . Parts Field Recycled . | . . . Retrieved Matter . | . . . Parts Self-Destructed 5 | . . 5 Prevented . | . . . Parts Restored . | . . . Kills | -11 -10 -10 ------- Run | Yrd Mat Sub Combat Hostiles Destroyed 12 | . 12 . Melee 3 | . 3 . Guns 7 | . 7 . Classes Destroyed 8 | 1 6 1 Tunneler 4 | 3 1 . Hauler 1 | . 1 . Recycler 2 | . 2 . Operator 4 | . 4 . Watcher 1 | . 1 . Swarmer 2 | . 2 . Grunt 10 | . 10 . Cobbler 1 | . . 1 Best Kill Streak 3 | 3 3 . Combat Bots Only 2 | . 2 . Max Kills in Single Turn 2 | 1 2 1 Gunslinging 1 | . 1 . Exploded . | . . . Melee 1 | . 1 . Uniques/NPCs Destroyed . | . . . Combat | -11 -10 -10 -------- Run | Yrd Mat Sub Hostile Shots Fired 119 | . 104 15 Missed 32 | . 28 4 Hits 87 | . 76 11 Projectile 87 | . 76 11 AOE 1 | . 1 . Critical Strikes 1 | . . 1 Part Disruptions 1 | . 1 . Damage Taken 1211 | . 909 302 Core 255 | . 215 40 Absorbed by Shields . | . . . Core Remaining (%) 100 | 100 . . Volleys Fired 64 | 3 61 . Largest 2 | 2 2 . Hottest 40 | 40 40 . Shots Fired 127 | 6 121 . Gun 127 | 6 121 . Cannon . | . . . Launcher . | . . . Special . | . . . Kinetic 127 | 6 121 . Thermal . | . . . Explosive . | . . . Electromagnetic . | . . . Robot Hit Streak 19 | 4 19 . Robot Miss Streak 2 | . 2 . Penetration Max . | . . . Secondary Targets 2 | . 2 . Max Gunslinging Chain 1 | . 1 . Shots Hit Robots 122 | 4 109 9 Core Hits 34 | 3 30 1 Critical Kills . | . . . Critical Parts Destroyed 6 | . 5 1 Critical Strikes 6 | . 5 1 Destroy 1 | . 1 . Smash 5 | . 4 1 Melee Attacks 47 | . 31 16 Impact 47 | . 31 16 Slashing . | . . . Piercing . | . . . Sneak Attacks 5 | . 1 4 Combat Hostiles . | . . . Follow-up Attacks . | . . . Damage Inflicted 2172 | 52 1793 327 Guns 1089 | 52 1037 . Cannons . | . . . Explosions . | . . . Melee 1076 | . 749 327 Ramming 7 | . 7 . Kinetic 1089 | 52 1037 . Thermal . | . . . Explosive . | . . . Electromagnetic . | . . . Impact 1076 | . 749 327 Slashing . | . . . Piercing . | . . . Highest Corruption . | . . . Average Corruption . | . . . Corruption Purged . | . . . Corruption Blocked . | . . . Overload Shots . | . . . Overflow Damage 210 | . 160 50 Projectiles . | . . . Explosions . | . . . Melee 210 | . 160 50 Knockbacks 12 | . 9 3 Impact 11 | . 8 3 Kinetic . | . . . Secondary 1 | . 1 . Self-Inflicted Damage . | . . . Shots . | . . . Rammed 3 | 2 1 . Targets Rammed 3 | 2 1 . Kicked . | . . . Crushed . | . . . Highest Temperature 249 | . 3 249 Average Temperature 67 | . 2 124 Received Heat Transfer 736 | . 357 379 Siege Activations . | . . . Martial Activations . | . . . Shielding Activations . | . . . Robots Disrupted . | . . . Combat Hostiles . | . . . Robots Corrupted 4 | . 3 1 Combat Hostiles 2 | . 2 . Parts Fried 1 | . 1 . Impact Corruptions 11 | . 8 3 Robots Melted . | . . . Combat Hostiles . | . . . Parts Melted . | . . . Heat Transferred . | . . . Parts Sabotaged . | . . . Parts Stolen . | . . . Parts Stripped . | . . . Power Chain Reactions . | . . . Alert | -11 -10 -10 ------- Run | Yrd Mat Sub Maximum Alert Level . | . . . Low Security (%) 100 | 100 100 . Level 1 . | . . . Level 2 . | . . . Level 3 . | . . . Level 4 . | . . . Level 5 . | . . . High Security . | . . . Max Security . | . . . Peak Influence 100 | 10 100 . Initial . | . . . Average 29 | 1 30 . Influence Increases 516 | 15 501 . Destroy 0b10 Robot/C 240 | . 240 . Destroy 0b10 Robot/NC 60 | 15 45 . Destroy Leader 84 | . 84 . Successful Hack 22 | . 22 . Select Force Hacks 60 | . 60 . Destroy Structure 5 | . 5 . Lose Combat Pursuer 45 | . 45 . Influence Decreases 516 | 15 422 79 Entered New Map 39 | . . 39 Time Decay 447 | 15 392 40 Lost Part 30 | . 30 . Squads Dispatched 7 | . 7 . Investigation 3 | . 3 . Extermination . | . . . Reinforcement 4 | . 4 . Assault . | . . . Garrison . | . . . Intercept . | . . . Searches Triggered . | . . . Construction Impeded . | . . . Haulers Reinforced . | . . . Active Scanning Responses . | . . . Cargo Convoy Interrupts . | . . . Stealth | -11 -10 -10 --------- Run | Yrd Mat Sub Distress Signals 2 | . 2 . Communications Jammed . | . . . Distress Signals . | . . . Times Spotted 29 | . 28 1 Peak Tracking Total 4 | . 4 1 Tactical Retreats 3 | . 3 . Traps | -11 -10 -10 ------- Run | Yrd Mat Sub Traps Triggered 3 | . 3 . Indirectly . | . . . Trap Hack Attempts . | . . . Triggered . | . . . Disarmed . | . . . Reprogrammed . | . . . Reused . | . . . Traps Extracted . | . . . Installed . | . . . Triggered . | . . . Machines | -11 -10 -10 ---------- Run | Yrd Mat Sub Machines Disabled . | . . . Max in Single Turn . | . . . Machines Repaired . | . . . Machines Dismantled . | . . . Machines Sabotaged . | . . . Overloaded Fab Kills . | . . . Hacking | -11 -10 -10 --------- Run | Yrd Mat Sub Machines Accessed 6 | . 6 . Terminals 4 | . 4 . Fabricators . | . . . Repair Stations . | . . . Recycling Units 2 | . 2 . Scanalyzers . | . . . Garrison Access . | . . . Total Hacks 12 | . 12 . Successful 7 | . 7 . Failed 5 | . 5 . Catastrophic 1 | . 1 . Database Lockouts . | . . . Manual 13 | . 13 . Terminals 10 | . 10 . Fabricators . | . . . Repair Stations . | . . . Recycling Units 2 | . 2 . Scanalyzers . | . . . Garrison Access . | . . . Terminal Hacks 1 | . 1 . Terminal Index 1 | . 1 . Fabricator Hacks . | . . . Repair Station Hacks . | . . . Recycling Unit Hacks . | . . . Scanalyzer . | . . . Garrison Access Hacks . | . . . Unauthorized Hacks 6 | . 6 . Terminals 4 | . 4 . Botnet 2 | . 2 . Skim 2 | . 2 . Fabricators . | . . . Repair Stations . | . . . Recycling Units 2 | . 2 . Tunnel 2 | . 2 . Scanalyzers . | . . . Garrison Access . | . . . Data Cores Recovered . | . . . Used . | . . . Hacking Detections 4 | . 4 . Full Trace Events . | . . . Feedback Events . | . . . Feedback Blocked . | . . . Robot Schematics Acquired . | . . . Robots Built . | . . . Authchips . | . . . Time . | . . . Total Robot Build Rating . | . . . Part Schematics Acquired . | . . . Parts Built . | . . . Authchips . | . . . Time . | . . . Total Part Build Rating . | . . . Part Studies Acquired . | . . . Parts Repaired . | . . . Time . | . . . Parts Recycled . | . . . Recycled Matter . | . . . Retrieved Matter . | . . . Retrieved Components . | . . . Parts Scanalyzed . | . . . Part Schematics Acquired . | . . . Parts Damaged . | . . . Bothacking | -11 -10 -10 ------------ Run | Yrd Mat Sub Used RIF Installer . | . . . Robots Hacked . | . . . Non-combat . | . . . Combat . | . . . Robot Hacks Applied . | . . . Relay Couplers Released . | . . . Fabnet Peak Effective % . | . . . Robots Rewired . | . . . Allies Hacked . | . . . Hacks Repelled . | . . . Allies | -11 -10 -10 -------- Run | Yrd Mat Sub Total Allies . | . . . Largest Group . | . . . Highest-Rated Group . | . . . Highest-Rated Ally . | . . . Total Orders . | . . . Ally Attacks . | . . . Total Damage . | . . . Kills . | . . . Allies Corrupted . | . . . Allies Melted . | . . . Intel | -11 -10 -10 ------- Run | Yrd Mat Sub Active Infowar (turns) 1960 | 13 1388 559 Seismic 1960 | 13 1388 559 Robot Analysis Total . | . . . Derelict Logs Recovered 1 | . . 1 Drone Launches . | . . . Drone Recoveries . | . . . Exploration | -11 -10 -10 ------------- Run | Yrd Mat Sub Turns Passed 2288 | 84 1645 559 Spaces Moved 778 | 41 593 144 Core 5 | 5 . . Treads 770 | 36 593 141 Legs 3 | . . 3 Wheels . | . . . Hover . | . . . Flight . | . . . Fastest Speed 50 | 50 160 260 Average Speed 217 | 146 198 318 Slowest Speed 320 | 160 320 320 Overloaded Moves . | . . . Propulsion Burnouts . | . . . Robots Hopped . | . . . Potential Cave-ins . | . . . Cave-ins Triggered . | . . . Exploration Rate (%) 37 | 4 95 13 Regions Visited 2 Branch Regions 1 Pre-discovered Areas 3 | . 2 1 Known Exits Taken . | . . . Unknown Exits Taken 2 | 1 1 . Scrap Searched . | . . . Spaces Dug . | . . . Terrain Destroyed . | . . . Melee . | . . . Projectile . | . . . AOE . | . . . Terrain Rammed . | . . . Walls Destroyed . | . . . Machines Disabled . | . . . Actions | -11 -10 -10 --------- Run | Yrd Mat Sub Total 1156 | 54 884 218 Wait 213 | . 158 55 Move 776 | 40 592 144 Hop . | . . . Pick Up 18 | 1 17 . Fast Attach 9 | 7 2 . Attach 7 | . 4 3 Detach . | . . . Swap 13 | 1 12 . Drop 6 | . 6 . Fire 64 | 3 61 . Melee 47 | . 31 16 Ram . | . . . Kick . | . . . Crush 3 | 2 1 . Escape Stasis . | . . . Rewire . | . . . Trap . | . . . Miscellaneous . | . . . Route ------- -11/Scrapyard -10/Materials (discovered 6 exits: [*Mat x3] / [*Min x2] / [*Sub]) -10/Subcaves History --------- Turn | Location | Event 5 | -11/Scrapyard | Discovered new exit (range 15) 85 | -11/Scrapyard | Entered Materials 301 | -10/Materials | Build established: Mutant 539 | -10/Materials | Discovered new exit (range 11) 651 | -10/Materials | Discovered new exit (range 11) 675 | -10/Materials | Core integrity fell below 50% 685 | -10/Materials | Derelicts attacked the area 804 | -10/Materials | Discovered new exit (range 7) 1163 | -10/Materials | Discovered new exit (range 10) 1464 | -10/Materials | Discovered new exit (range 15) 1614 | -10/Materials | Discovered new exit (range 7) 1686 | -10/Materials | Core integrity fell below 20% 1730 | -10/Materials | Entered Subcaves 1740 | -10/Subcaves | Learned location of Mines (-10) 2027 | -10/Subcaves | Curiously followed by a Cobbler waking with a query about "LVR3C" 2256 | -10/Subcaves | Ambushed by angry Subdweller bent on revenge 2289 | -10/Subcaves | Destroyed by QB-G65(R) with Subdweller Beam Cannon Last Messages --------------- 02208_ Y3-LPN(O) knocked back. 02250_ Sneak attack on Y3-LPN(O). 02250_ Y3-LPN(O) suffers critical hit (Smash). 02250_ Destroyed Ion Engine. 02250_ Destroyed Wheel. 02250_ Y3-LPN(O) system corrupted by crushing effect. 02251_ Y3-LPN(O) system terminally corrupted. 02251_ Y3-LPN(O) cries out in pain. 02252_ Acquired 13 matter. 02256_ QB-G65(R) angrily emerges from the Twisted Machinery. 02256_ QB-G65(R): "LEAVESUB!" 02260_ Lgt. Treads destroyed. 02264_ Critical hit (Meltdown: +280). 02266_ Assault Rifle destroyed. 02279_ Ion Engine destroyed. 02281_ Aluminum Leg destroyed. 02289_ Hammer destroyed. 02289_ Seismic Detector destroyed. Map ----- +----------------------------------------------------+ | ?????????????????????????????????????????????????? | | ????????????????????????????? ???????????????????? | | ?????????????????? ?????? #????????????????? | | ????????????????# ?????? ?????????????????? | | ????????????????? ?????? #????????????????? | | ???????????? #???? ##???? ?????????????????? | | ??????????# #???# ##### ????? ???????????? | | ??????????# ##?# #????# ???????????? | | ????????? # ## #???# ""???????????? | | ????????? #### " ???????????? | | ?????????? " ???????????? | | ??????????? #? """??????????? | | ?????????????# ## % ????????????? | | ??????????????# #???????????????? | | ???????????????# #????????????????? | | ????????????????# #?????? "????????? | | ?????????????????# " #?? ? ??????????? | | ???????????####??## " ##? #???????????? | | ????##????##" ##??# """"" ## #????????????? | | ???## ???#" #?## """" # # ??????? | | ???# #?## " %### "" "" """ ?????? | | ????# ## ""## ]% ?????? | | ??# """ ### " "" ##### ?????? | | ## ""## "" " #????????????? | | ##"""" " " "## ## #????????????? | | % ###" @ ##?##?###????????????? | | # # #### #?##" R ##????????????????????? | | ????????## #### " ####?????????????????????? | | ?????????## ## ####????????????????????????? | | ???????## ##### #???????????????????????????? | | ???????# ##???# #???????????????????????????? | | ????????# #???# #???????????????????????????? | | ?????????# #???# ???????????????????????????? | | ?????????# ##??# ???????????????????????????? | | ?????????# ##?# ??????????????????????????? | | ????????## #### ??????????????????????????? | | ?????#### #?## ?????????????????????????? | | #?#### #??# ?????????????????????????? | | #?# ###?? ????????????????????????? | | ### ### ##???? ????????????????????????? | | ##?###????? ???????????????????????? | | ###?????????? ???????????????????????? | | #####???????????? ??????????????????????? | | ###???????????????? ## ??????????????????????? | | ??????????????????? ?? ????????????????????????? | | ??????????????????? #????????????????????????????? | | ?????????????????????????????????????????????????? | | ?????????????????????????????????????????????????? | | ?????????????????????????????????????????????????? | | ?????????????????????????????????????????????????? | +----------------------------------------------------+ Best States ------------- Heat Dissipation 25 Energy Generation 10 Energy Capacity 250 Matter Stores 300 Matter Capacity 300 Sight Range 16 Terrain Scan Density 10 Armor Coverage 150 Evasion (%) 40 Recoil Reduction 2 Item Schematics ----------------- None Robot Schematics ------------------ None Fabricated ------------ Nothing Repaired ---------- Nothing Studied --------- None Alien Tech Used ----------------- None Achievements -------------- None Challenges ------------ None Game ------ Seed PhasingDynamicNullifier Manual? 0 Play Time 00:09:13 Cumulative 493.4 hours Start 2026.06.29 @ 15:34:25 End 2026.06.29 @ 15:42:23 Sessions 1 Manual Loads 0 Difficulty Rogue Special Mode None Game No. 289 Rogue 289 Adventurer 0 Explorer 0 Win Type - Total 23 Types 12/1/4/2/1/0/1/2/0/0 Lore% 94 Gallery% 82 Achievement% 76 Wizard Run 0 Options --------- Layout 1 ASCII 0 Keyboard 0 Movement Mouse Keybinds 0 Fullscreen 2 Font 32/SmallcapsGlow Map View 50x35 Zoom Use 0% Tactical HUD 1 Map Filters NONE Filters NONE Steam 1 RUN: a09a6662-0bb3-456e-8405-36e38b9eb74c